Cogmind - Beta 13 @@@ ROGUE MODE // 2024.07.11 @ 17:23:01 Player: DeepestRoots Result: Self-destructed Performance ------------- Evolutions (2) 1000 Regions Visited (3) 600 Robots Destroyed (55) 275 Value Destroyed (1547) 1547 Prototype IDs (3) 60 Alien Tech Used (0) 0 Bonus (0) 0 TOTAL SCORE: 3482 Bonus ------- None Cogmind --------- Core Integrity 550/550 Matter 192/300 Energy 250/250 System Corruption 0% Temperature Cool (0) Movement Treading (160) Location -8/Materials Parts ------- > --- POWER (1) -------- Ion Engine > --- PROPULSION (4) --- Light Treads Light Treads > --- UTILITY (4) ------ Gun Armor Scrap Shield > --- WEAPON (2+2) ----- Makeshift Shrapnel Gun Battle Cannon > --- INVENTORY (5) ---- Battle Cannon Battle Cannon Subdweller Shrapnel Launcher Hammer Peak State ------------ > --- POWER ------------ Ion Engine > --- PROPULSION ------- Light Treads Light Treads > --- UTILITY ---------- Gun Armor Scrap Shield > --- WEAPON ----------- Makeshift Shrapnel Gun Battle Cannon > --- INVENTORY -------- Battle Cannon Battle Cannon Subdweller Shrapnel Launcher Hammer [Rating: 22] Favorites ----------- Power Ion Engine Engine Ion Engine Propulsion Light Treads Treads Light Treads Leg Aluminum Leg Wheel Subdweller Monowheel Utility Medium Storage Unit Device Seismic Detector Storage Medium Storage Unit Processor Signal Interpreter Protection Scrap Shield Weapon Assault Rifle Energy Gun Subdweller Laser Energy Cannon Beam Cannon Ballistic Gun Assault Rifle Ballistic Cannon Light Cannon Launcher Subdweller Shrapnel Launcher Impact Weapon Hammer Special Melee Weapon Dirty Datajack Build | -11 -10 -10 -8 ------- Run | Yrd Mat Sub Mat Slots Evolved 4 | . . . 4 Power . | . . . . Propulsion 2 | . . . 2 Utility 2 | . . . 2 Weapon . | . . . . Parts Attached 61 | 7 19 34 1 Power 6 | 1 3 2 . Engine 6 | 1 3 2 . Core . | . . . . Reactor . | . . . . Propulsion 16 | 2 7 7 . Treads 5 | . . 5 . Leg 10 | 2 7 1 . Wheel 1 | . . 1 . Hover . | . . . . Flight . | . . . . Utility 11 | 2 4 4 1 Device 2 | 1 . 1 . Storage 4 | 1 3 . . Processor 1 | . 1 . . Hackware . | . . . . Protection 4 | . . 3 1 Artifact . | . . . . Weapon 28 | 2 5 21 . Energy Gun 3 | 2 . 1 . Energy Cannon 1 | . 1 . . Ballistic Gun 11 | . 2 9 . Ballistic Cannon 6 | . 2 4 . Launcher 4 | . . 4 . Special Weapon . | . . . . Impact Weapon 2 | . . 2 . Slashing Weapon . | . . . . Piercing Weapon . | . . . . Special Melee Weapon 1 | . . 1 . Unidentified Prototypes 1 | . . . 1 Parts Lost 5 | . 3 2 . Power 1 | . . 1 . Propulsion 1 | . . 1 . Utility 1 | . 1 . . Weapon 2 | . 2 . . Highest Loss Streak 2 | . 2 1 . To Critical Strikes . | . . . . Average Slot Usage (%) 93 | . 99 91 53 Engine 13 | . 14 14 7 Treads 18 | . . 25 15 Leg 9 | . 28 2 . Storage 8 | . 16 6 . Processor 6 | . 8 6 . Protection 5 | . . 7 15 Energy Gun 4 | . 5 3 . Energy Cannon 2 | . 5 . . Ballistic Gun 13 | . 11 13 7 Ballistic Cannon 4 | . 5 3 7 Impact Weapon 3 | . . 5 . Naked Turns . | . . . . Heaviest Build 33 | 13 22 33 32 Greatest Support 40 | 20 20 40 40 Greatest Overweight (x) 2 | 1 1 2 . Average Overweight (x) . | . . . . Largest Inventory Capacity 10 | 8 10 10 5 Average Capacity 7 | 7 9 7 5 Most Carried 10 | 6 10 10 4 Average Carried 7 | 2 9 7 4 Final Capacity 10 | 8 10 5 5 Final Carried 10 | 6 10 5 4 Class Distribution -------------------- 62% | Mutant 37% | Scavenger-Mutant Dominant Class ---------------- Scavenger-Mutant | -10/Materials Mutant | -10/Subcaves Mutant | -8/Materials Resources | -11 -10 -10 -8 ----------- Run | Yrd Mat Sub Mat Matter Collected 1531 | 343 409 670 109 Remotely . | . . . . Salvage Created 1844 | 178 1142 428 96 Parts 113 | 10 66 32 5 Haulers Intercepted 2 | . 2 . . Recyclers Shooed 2 | . 2 . . Parts Field Recycled . | . . . . Retrieved Matter . | . . . . Parts Self-Destructed 19 | . . 19 . Prevented . | . . . . Kills | -11 -10 -10 -8 ------- Run | Yrd Mat Sub Mat Combat Hostiles Destroyed 42 | . 20 19 3 Guns 24 | . 11 12 1 Cannons 12 | . 8 2 2 AOE 6 | . 1 5 . Classes Destroyed 10 | 3 5 1 1 Worker 2 | 2 . . . Tunneler 2 | 2 . . . Hauler 2 | . 2 . . Recycler 3 | 1 2 . . Operator 1 | . 1 . . Watcher 3 | . 3 . . Swarmer 7 | . 3 4 . Grunt 19 | . 17 . 2 Duelist 1 | . . . 1 Subdweller 15 | . . 15 . Best Kill Streak 4 | 3 4 4 3 Combat Bots Only 4 | . 4 4 3 Max Kills in Single Turn 2 | 1 1 2 1 Gunslinging . | . . . . Exploded 2 | . 1 2 . Melee . | . . . . Uniques/NPCs Destroyed . | . . . . Combat | -11 -10 -10 -8 -------- Run | Yrd Mat Sub Mat Hostile Shots Fired 161 | . 57 92 12 Missed 55 | . 17 34 4 Damage Taken 1620 | 5 474 1010 131 Core 241 | . 80 161 . Absorbed by Shields . | . . . . Regen/Repaired (Parts) 72 | . 72 . . Core Remaining (%) 51 | 100 . 3 . Volleys Fired 164 | 8 76 70 10 Largest 2 | 2 2 2 2 Hottest 95 | 80 80 95 63 Shots Fired 288 | 15 147 106 20 Gun 202 | 15 111 66 10 Cannon 72 | . 36 26 10 Launcher 14 | . . 14 . Special . | . . . . Kinetic 164 | . 73 71 20 Thermal 56 | . 21 35 . Explosive . | . . . . Electromagnetic 68 | 15 53 . . Robot Hit Streak 26 | 4 10 26 11 Robot Miss Streak 11 | 2 3 3 11 Penetration Max . | . . . . Secondary Targets 2 | . . 2 . Max Gunslinging Chain 1 | . . 1 . Shots Hit Robots 176 | 8 91 65 12 Core Hits 80 | 5 36 30 9 Critical Kills . | . . . . Critical Parts Destroyed 1 | . . 1 . Critical Strikes 4 | . 2 2 . Destroy 2 | . . 2 . Blast 1 | . 1 . . Corrupt 1 | . 1 . . Melee Attacks 74 | . . 74 . Impact 74 | . . 74 . Slashing . | . . . . Piercing . | . . . . Sneak Attacks . | . . . . Combat Hostiles . | . . . . Follow-up Attacks . | . . . . Damage Inflicted 4000 | 137 1524 2066 273 Guns 2020 | 107 958 803 152 Cannons 773 | . 377 275 121 Explosions 1191 | 30 173 988 . Melee . | . . . . Ramming 16 | . 16 . . Kinetic 2496 | . 571 1652 273 Thermal 886 | 30 442 414 . Explosive . | . . . . Electromagnetic 602 | 107 495 . . Impact . | . . . . Slashing . | . . . . Piercing . | . . . . Highest Corruption . | . . . . Average Corruption . | . . . . Corruption Purged . | . . . . Corruption Blocked . | . . . . Overload Shots . | . . . . Overflow Damage 6 | . 6 . . Projectiles 5 | . 5 . . Explosions . | . . . . Melee 1 | . 1 . . Knockbacks 5 | . 2 1 2 Impact 1 | . 1 . . Kinetic 4 | . 1 1 2 Secondary . | . . . . Self-Inflicted Damage 79 | 5 . 74 . Shots 4 | 1 . 3 . Rammed . | . . . . Targets Rammed 1 | . 1 . . Kicked 1 | . 1 . . Crushed . | . . . . Highest Temperature 175 | 54 175 . 34 Average Temperature 42 | 27 45 . 15 Received Heat Transfer 516 | . 261 165 90 Siege Activations . | . . . . Robots Corrupted . | . . . . Combat Hostiles . | . . . . Parts Fried 3 | 1 2 . . Impact Corruptions 1 | . 1 . . Robots Melted . | . . . . Combat Hostiles . | . . . . Parts Melted 1 | . . 1 . Heat Transferred 1376 | . 755 621 . Parts Sabotaged . | . . . . Parts Stolen . | . . . . Parts Stripped . | . . . . Power Chain Reactions 4 | 1 3 . . Alert | -11 -10 -10 -8 ------- Run | Yrd Mat Sub Mat Peak Influence 304 | 25 274 . 304 Initial 218 | . 16 . 218 Average 141 | 11 145 . 271 Maximum Alert Level 1 | . 1 . 1 Low Security (%) 81 | 100 84 . . Level 1 18 | . 15 . 100 Level 2 . | . . . . Level 3 . | . . . . Level 4 . | . . . . Level 5 . | . . . . High Security . | . . . . Max Security . | . . . . Squads Dispatched 7 | . 6 . 1 Investigation 4 | . 4 . . Extermination . | . . . . Reinforcement 3 | . 2 . 1 Assault . | . . . . Garrison . | . . . . Intercept . | . . . . Searches Triggered . | . . . . Construction Impeded . | . . . . Haulers Reinforced . | . . . . Active Scanning Responses . | . . . . Cargo Convoy Interrupts . | . . . . Stealth | -11 -10 -10 -8 --------- Run | Yrd Mat Sub Mat Distress Signals . | . . . . Communications Jammed . | . . . . Distress Signals . | . . . . Times Spotted 68 | . 32 33 3 Peak Tracking Total 5 | . 3 5 3 Tactical Retreats 6 | . 2 4 . Traps | -11 -10 -10 -8 ------- Run | Yrd Mat Sub Mat Traps Triggered 2 | . 2 . . Indirectly . | . . . . Trap Hack Attempts . | . . . . Triggered . | . . . . Disarmed . | . . . . Reprogrammed . | . . . . Reused 2 | . . 2 . Traps Extracted . | . . . . Installed 2 | . . 2 . Triggered 2 | . . 2 . Most Traps Carried 1 | . . 1 . Machines | -11 -10 -10 -8 ---------- Run | Yrd Mat Sub Mat Machines Disabled 6 | . 2 3 1 Max in Single Turn 2 | . 1 2 1 Machines Repaired . | . . . . Machines Dismantled . | . . . . Machines Sabotaged . | . . . . Overloaded Fab Kills . | . . . . Hacking | -11 -10 -10 -8 --------- Run | Yrd Mat Sub Mat Machines Accessed 11 | . 9 1 1 Terminals 7 | . 6 . 1 Fabricators . | . . . . Repair Stations 1 | . 1 . . Recycling Units 2 | . 2 . . Scanalyzers . | . . . . Garrison Access . | . . . . Total Hacks 31 | . 27 2 2 Successful 16 | . 13 2 1 Failed 15 | . 14 . 1 Catastrophic 2 | . 2 . . Database Lockouts . | . . . . Manual 15 | . 15 . . Terminals 23 | . 21 . 2 Fabricators . | . . . . Repair Stations 2 | . 2 . . Recycling Units 4 | . 4 . . Scanalyzers . | . . . . Garrison Access . | . . . . Terminal Hacks 7 | . 4 2 1 Record 2 | . . 2 . Part Schematic 1 | . 1 . . Robot Analysis 2 | . 2 . . Prototype ID Bank 1 | . 1 . . Hauler Manifests 1 | . . . 1 Fabricator Hacks . | . . . . Repair Station Hacks 2 | . 2 . . Scan Component 1 | . 1 . . Repair 1 | . 1 . . Recycling Unit Hacks 2 | . 2 . . Retrieve Components 2 | . 2 . . Scanalyzer . | . . . . Garrison Access Hacks . | . . . . Unauthorized Hacks 5 | . 5 . . Terminals 5 | . 5 . . Botnet 3 | . 3 . . Disrupt 1 | . 1 . . Operators 1 | . 1 . . Fabricators . | . . . . Repair Stations . | . . . . Recycling Units . | . . . . Scanalyzers . | . . . . Garrison Access . | . . . . Data Cores Recovered . | . . . . Used . | . . . . Hacking Detections 7 | . 7 . . Full Trace Events 2 | . 2 . . Feedback Events . | . . . . Feedback Blocked . | . . . . Robot Schematics Acquired . | . . . . Robots Built . | . . . . Authchips . | . . . . Time . | . . . . Total Robot Build Rating . | . . . . Part Schematics Acquired 1 | . 1 . . Parts Built . | . . . . Authchips . | . . . . Time . | . . . . Total Part Build Rating . | . . . . Parts Repaired 1 | . 1 . . Time 26 | . 26 . . Parts Recycled . | . . . . Recycled Matter . | . . . . Retrieved Matter . | . . . . Retrieved Components 20 | . 20 . . Parts Scanalyzed . | . . . . Part Schematics Acquired . | . . . . Parts Damaged . | . . . . Bothacking | -11 -10 -10 -8 ------------ Run | Yrd Mat Sub Mat Used RIF Installer . | . . . . Robots Hacked . | . . . . Non-combat . | . . . . Combat . | . . . . Robot Hacks Applied . | . . . . Relay Couplers Released . | . . . . Fabnet Peak Effective % . | . . . . Robots Rewired . | . . . . Allies Hacked . | . . . . Hacks Repelled . | . . . . Allies | -11 -10 -10 -8 -------- Run | Yrd Mat Sub Mat Total Allies . | . . . . Largest Group . | . . . . Highest-Rated Group . | . . . . Highest-Rated Ally . | . . . . Total Orders . | . . . . Ally Attacks . | . . . . Total Damage . | . . . . Kills . | . . . . Allies Corrupted . | . . . . Allies Melted . | . . . . Intel | -11 -10 -10 -8 ------- Run | Yrd Mat Sub Mat Robot Analysis Total 2 | . 2 . . Derelict Logs Recovered 2 | . . 2 . Drone Launches . | . . . . Drone Recoveries . | . . . . Exploration | -11 -10 -10 -8 ------------- Run | Yrd Mat Sub Mat Turns Passed 7409 | 177 1930 5193 109 Spaces Moved 4269 | 129 1129 2965 46 Core 28 | 28 . . . Treads 2724 | . . 2678 46 Legs 1517 | 101 1129 287 . Wheels . | . . . . Hover . | . . . . Flight . | . . . . Fastest Speed 50 | 50 120 120 160 Average Speed 148 | 107 130 157 160 Slowest Speed 260 | 120 190 260 160 Overloaded Moves . | . . . . Propulsion Burnouts . | . . . . Robots Hopped . | . . . . Cave-ins Triggered . | . . . . Exploration Rate (%) 50 | 5 97 94 4 Regions Visited 3 Branch Regions 1 Pre-discovered Areas 1 | . . 1 . Known Exits Taken 2 | . 1 1 . Unknown Exits Taken 1 | 1 . . . Scrap Searched 5 | . . 5 . Spaces Dug 68 | . . 68 . Terrain Destroyed 223 | . 11 211 1 Melee 41 | . . 41 . Projectile 6 | . . 5 1 AOE 176 | . 11 165 . Terrain Rammed . | . . . . Walls Destroyed . | . . . . Machines Disabled . | . . . . Actions | -11 -10 -10 -8 --------- Run | Yrd Mat Sub Mat Total 4918 | 149 1445 3263 61 Wait 268 | . 198 66 4 Move 4266 | 128 1128 2964 46 Hop . | . . . . Pick Up 31 | 6 8 17 . Fast Attach 28 | 7 3 18 . Attach 6 | . 3 2 1 Detach . | . . . . Swap 27 | . 13 14 . Drop 49 | . 15 34 . Fire 164 | 8 76 70 10 Melee 74 | . . 74 . Ram . | . . . . Kick 1 | . 1 . . Crush . | . . . . Escape Stasis . | . . . . Rewire . | . . . . Trap 2 | . . 2 . Miscellaneous 2 | . . 2 . Route ------- -11/Scrapyard -10/Materials (discovered 5 exits: [*Mat x3] / *Min / *Sub) -10/Subcaves (discovered 3 exits: *Mat x2 / Rec) -8/Materials History --------- Turn | Location | Event 3 | -11/Scrapyard | Discovered new exit (range 15) 178 | -11/Scrapyard | Entered Materials 305 | -10/Materials | Build established: Mutant 557 | -10/Materials | Discovered new exit (range 3) 740 | -10/Materials | Discovered new exit (range 15) 795 | -10/Materials | Discovered new exit (range 5) 1176 | -10/Materials | Discovered new exit (range 16) 1402 | -10/Materials | Build established: Scavenger-Mutant 1559 | -10/Materials | Identified exit to Mines 1909 | -10/Materials | Discovered new exit (range 6) 1929 | -10/Materials | Identified exit to Subcaves 2042 | -10/Materials | Repaired Assault Rifle 2108 | -10/Materials | Entered Subcaves 2521 | -10/Subcaves | Shifting Twisted Machinery released Piercing Trap 2533 | -10/Subcaves | Core integrity fell below 50% 2584 | -10/Subcaves | Identified exit to Recycling 2675 | -10/Subcaves | Learned location of Zion (-6) 2675 | -10/Subcaves | Met a Zionite searching for "candidates" 3357 | -10/Subcaves | A swath of the cavern ceiling suddenly collapsed 3564 | -10/Subcaves | Learned Materials garrison access intel 3832 | -10/Subcaves | A swath of the cavern ceiling suddenly collapsed 3878 | -10/Subcaves | A Subdweller sparked back to life 3878 | -10/Subcaves | A Subdweller sparked back to life 3878 | -10/Subcaves | A Subdweller sparked back to life 3886 | -10/Subcaves | Core integrity fell below 20% 3901 | -10/Subcaves | Found Prototype Protection 3915 | -10/Subcaves | Shifting Twisted Machinery released Mak. Kinetic Plating 4179 | -10/Subcaves | Build established: Mutant 4262 | -10/Subcaves | Discovered new exit (range 14) 4281 | -10/Subcaves | Identified exit to Materials 4310 | -10/Subcaves | Shifting Twisted Machinery released Battle Cannon 4353 | -10/Subcaves | Visited Clippyterm 4634 | -10/Subcaves | Shifting Twisted Machinery released Battle Cannon 7032 | -10/Subcaves | Ambushed by Subdweller buried in earth 7036 | -10/Subcaves | Ambushed by Subdweller buried in earth 7070 | -10/Subcaves | Ambushed by Subdweller buried in earth 7070 | -10/Subcaves | Ambushed by Subdweller buried in earth 7301 | -10/Subcaves | Entered Materials 7301 | -8/Materials | Evolved 4 slots: Propulsion x2, Utility x2 7301 | -8/Materials | Identified Gun Armor 7302 | -8/Materials | Loaded intel: 1 garrison access location 7302 | -8/Materials | Attached Gun Armor, gained temporary slots: Weapon x2 7410 | -8/Materials | Self-destructed Last Messages --------------- >>Manifests Retrieving manifest data... Found 6 haulers: A-02 Transporter 4x Hvy. Ion Engine (2 escorts) A-02 Transporter 2x Imp. Medium Laser 1x Structural Scanner A-02 Transporter 6x Mni. Grenade Launcher A-02 Transporter 3x Sml. Matter Pod 1x Adv. Targeting Computer A-02 Transporter 6x Actuator Array A-02 Transporter 2x Adv. EMP Blaster 4x Hvy. EM Shotgun (1 escort) Map ----- +----------------------------------------------------+ | | | | | | | | | | | | | | | | | | | | | | | | | | | | | | | | | | | | | | | | | | | | | ?????????????????????????????????????????????????? | | ???????????????????????#######???????????????????? | | ???????????????????????# T #???????????????????? | | ?????????###########???# @ #???????????????????? | | ?????????# [ #???# #???????????????????? | | ?????????# ##### """ #???????????????????? | | ?????????# """ """ # # """ #???????????????????? | | ?????????# """ """ # # """ #???????????????????? | | ?????????# """ """ # # #???????????????????? | | ?????????# + ###+########+###??????????? | | ?????????# # ^ ???? | | ?????????# # ! ???? | | ?????????########### % """" "????? | | ???????????????????############### """"????????? | | ??????????????????????????????????? """?????????? | | ???????????????????????????????????? ?????????? | | ????????????????????????????????????? ????????? | | ??????????????????????????????????????####???????? | | ?????????????????????????????????????????????????? | | ?????????????????????????????????????????????????? | | ?????????????????????????????????????????????????? | | ?????????????????????????????????????????????????? | | ?????????????????????????????????????????????????? | | ?????????????????????????????????????????????????? | | ?????????????????????????????????????????????????? | | ?????????????????????????????????????????????????? | | ?????????????????????????????????????????????????? | | ?????????????????????????????????????????????????? | +----------------------------------------------------+ Best States ------------- Heat Dissipation 31 Energy Generation 15 Energy Capacity 250 Matter Stores 400 Matter Capacity 400 Sight Range 16 Terrain Scan Density 10 Armor Coverage 860 Evasion (%) 55 Recoil Reduction 2 Item Schematics ----------------- Huge Storage Unit | -10/Materials | Hacked Robot Schematics ------------------ None Fabricated ------------ Nothing Alien Tech Used ----------------- None Achievements -------------- None Challenges ------------ None Game ------ Seed MachineDrainedMatter Manual? 0 Play Time 00:59:10 Cumulative 222.1 hours Start 2024.07.11 @ 16:23:34 End 2024.07.11 @ 17:23:01 Sessions 1 Manual Loads 0 Difficulty Rogue Special Mode None Game No. 15 Rogue 6 Adventurer 6 Explorer 3 Win Type - Total 13 Types 11/0/0/1/0/1/0/0/0 Lore% 48 Gallery% 53 Achievement% 62 Wizard Run 0 Options --------- Layout 0 ASCII 0 Keyboard 0 Movement Arrows Keybinds 0 Fullscreen 1 Font 36/Terminus++ Map View 76x50 Zoom Use 0% Tactical HUD 1 Map Filters NONE Filters NONE Steam 0 RUN: c421baaf-aafc-4783-8a54-8e5f8f67fd4b